bitfinex-derivatives/quotes_BTCF0:USTF0_20250626
["timestamp","ask_amount","ask_price","bid_price","bid_amount"]
[1750958544136,0.39467976,107350.0,107340.0,0.5162456]
[1750958550441,0.75285977,107350.0,107340.0,0.5162456]
[1750958551940,0.39467976,107350.0,107340.0,0.5162456]
[1750958552242,0.75285977,107350.0,107340.0,0.5162456]
[1750958552645,0.97067976,107350.0,107340.0,0.8770456]
[1750958552848,0.97067976,107350.0,107340.0,1.23522561]
[1750958553038,0.97067976,107350.0,107340.0,0.8770456]
[1750958553236,0.97067976,107350.0,107340.0,1.23522561]
[1750958554533,0.14783686,107350.0,107340.0,1.81122561]
[1750958554740,0.14783686,107350.0,107340.0,1.90322561]
[1750958555652,0.33307966,107350.0,107340.0,1.5450456]
[1750958555939,0.33307966,107350.0,107340.0,1.90322561]
[1750958556452,0.33307966,107350.0,107340.0,1.5450456]
[1750958556743,0.33307966,107350.0,107340.0,1.90322561]
[1750958557839,0.33107966,107350.0,107340.0,1.90322561]
[1750958558344,0.33107966,107350.0,107340.0,1.91865431]
[1750958559244,0.33107966,107350.0,107340.0,1.34265431]
[1750958559442,0.33107966,107350.0,107340.0,1.91861431]
[1750958560246,0.33107966,107350.0,107340.0,1.31245431]
[1750958560447,0.33107966,107350.0,107340.0,1.88841431]
[1750958562552,0.33307966,107350.0,107340.0,1.88841431]
[1750958563152,0.33107966,107350.0,107340.0,1.5302343]
[1750958563452,0.33107966,107350.0,107340.0,1.88841431]
[1750958563955,0.33207966,107350.0,107340.0,1.88841431]
[1750958565445,0.33107966,107350.0,107340.0,1.88841431]
[1750958566451,0.14483686,107350.0,107340.0,1.31245431]
[1750958566649,0.14483686,107350.0,107340.0,2.02441431]
[1750958566856,0.02483686,107350.0,107340.0,2.02441431]
[1750958567250,0.0002,107360.0,107350.0,0.1862428]
[1750958567550,0.1650499,107360.0,107350.0,1.32882281]
[1750958570152,0.0250499,107360.0,107350.0,1.68700282]
[1750958570351,0.0002,107370.0,107360.0,0.1862255]
[1750958570555,0.45745906,107380.0,107370.0,0.1862081]
[1750958570860,0.37323442,107380.0,107370.0,1.19768811]
[1750958571158,0.37323442,107380.0,107370.0,1.22778811]
[1750958571959,0.37523442,107380.0,107370.0,1.22778811]
[1750958572759,0.37523442,107380.0,107370.0,1.19768811]
[1750958573260,0.37623442,107380.0,107370.0,1.19768811]
[1750958574863,0.40913442,107380.0,107370.0,1.19768811]
[1750958576362,0.44073442,107380.0,107370.0,1.19768811]
[1750958578366,0.44073442,107380.0,107370.0,1.16618811]
[1750958578864,0.44073442,107380.0,107370.0,0.8080081]
[1750958579063,1.68475443,107380.0,107370.0,0.23]
[1750958579259,2.04555443,107380.0,107370.0,0.23]
[1750958579563,0.1862081,107370.0,107360.0,0.2793244]
[1750958579764,0.40534662,107370.0,107360.0,0.6093244]
[1750958580159,0.40534662,107370.0,107360.0,0.96750441]
[1750958580971,0.40534662,107370.0,107360.0,0.5627685]
[1750958581166,0.40534662,107370.0,107360.0,0.516214]
[1750958581469,0.1862255,107360.0,107350.0,0.83793384]
[1750958581662,0.44447629,107360.0,107350.0,1.18793384]
[1750958581863,0.43496402,107360.0,107350.0,1.18793384]
[1750958582966,0.43596402,107360.0,107350.0,1.18793384]
[1750958583365,0.43596402,107360.0,107350.0,1.14137444]
[1750958583762,0.43796402,107360.0,107350.0,1.14137444]
[1750958584971,0.4129255,107360.0,107350.0,1.14137444]
[1750958585871,0.42221471,107360.0,107350.0,1.14137444]
[1750958586271,0.4129255,107360.0,107350.0,1.14137444]
[1750958587170,0.4129255,107360.0,107350.0,1.49955445]
[1750958587371,0.4129255,107360.0,107350.0,1.56225445]
[1750958587671,0.3493255,107360.0,107350.0,1.56225445]
[1750958589067,0.133,107360.0,107350.0,1.56225445]
[1750958589269,0.133,107360.0,107350.0,1.59295445]
[1750958589972,0.3182255,107360.0,107350.0,1.59295445]
[1750958590471,0.3162255,107360.0,107350.0,1.59295445]
[1750958590766,0.3162255,107360.0,107350.0,1.23477444]
[1750958590969,0.3410889,107360.0,107350.0,1.20407444]
[1750958591175,0.4048889,107360.0,107350.0,2.00213445]
[1750958591371,0.4048889,107360.0,107350.0,1.64395444]
[1750958591666,0.4048889,107360.0,107350.0,1.61205444]
[1750958592262,0.4078889,107360.0,107350.0,1.61205444]
[1750958593873,0.4078889,107360.0,107350.0,1.97023445]
[1750958594566,0.1578634,107360.0,107350.0,2.00263445]
[1750958595069,0.133,107360.0,107350.0,2.00263445]
[1750958595872,0.132,107360.0,107350.0,2.00263445]
[1750958596272,0.13,107360.0,107350.0,2.00263445]
[1750958597172,0.0002,107370.0,107360.0,0.1862255]
[1750958597363,0.14,107370.0,107360.0,1.30244051]
[1750958597568,0.16488968,107370.0,107360.0,1.62466601]
[1750958598274,0.16688968,107370.0,107360.0,1.62466601]
[1750958600463,0.16788968,107370.0,107360.0,1.62466601]
[1750958601376,0.35409788,107370.0,107360.0,1.62466601]
[1750958601876,0.16788968,107370.0,107360.0,1.62466601]
[1750958603176,0.35409788,107370.0,107360.0,1.62466601]
[1750958603573,0.35309788,107370.0,107360.0,1.62466601]
[1750958603876,0.35409788,107370.0,107360.0,1.62466601]
[1750958604478,0.16788968,107370.0,107360.0,1.62466601]
[1750958608179,0.35409758,107370.0,107360.0,1.62466601]
[1750958608679,0.16788968,107370.0,107360.0,1.62466601]
[1750958609367,0.16688968,107370.0,107360.0,1.62466601]
[1750958610274,0.16488968,107370.0,107360.0,1.62466601]
[1750958610474,0.16488968,107370.0,107360.0,1.98284602]
[1750958610876,0.02488968,107370.0,107360.0,1.98284602]
[1750958611076,0.02488968,107370.0,107360.0,1.62466601]
[1750958611978,0.16488968,107370.0,107360.0,1.62466601]
[1750958612579,0.14,107370.0,107360.0,1.62466601]
[1750958613074,0.14,107370.0,107360.0,1.64001873]
[1750958613578,0.14,107370.0,107360.0,1.64015989]
[1750958616674,0.14,107370.0,107360.0,1.63974995]
[1750958616874,0.14,107370.0,107360.0,1.63997207]
[1750958618178,0.4216376,107380.0,107370.0,0.1862082]
[1750958618383,0.5763431,107380.0,107370.0,1.83090821]
[1750958618890,0.5297932,107380.0,107370.0,1.83090821]
[1750958619590,0.5317932,107380.0,107370.0,1.83090821]
[1750958620284,0.4862441,107380.0,107370.0,1.83090821]
[1750958623890,0.84442411,107380.0,107370.0,0.8970082]
[1750958624102,0.84442411,107380.0,107370.0,0.5362082]
[1750958624297,1.20522411,107380.0,107370.0,0.5362082]
[1750958625298,0.84442411,107380.0,107370.0,0.5362082]
[1750958625499,1.42006411,107380.0,107370.0,0.5362082]
[1750958629809,1.0618841,107380.0,107370.0,0.5362082]
[1750958630207,0.4862441,107380.0,107370.0,0.5362082]
[1750958630510,1.0152964,107380.0,107370.0,1.25518821]
[1750958630814,0.4396964,107380.0,107370.0,1.25518821]
[1750958632604,0.4396964,107380.0,107370.0,1.31888821]
[1750958636017,0.4396964,107380.0,107370.0,0.8970082]
[1750958638615,0.79787641,107380.0,107370.0,0.5362082]
[1750958640022,1.15867641,107380.0,107370.0,0.35]
[1750958640518,1.15867641,107380.0,107370.0,0.5362079]
[1750958640721,1.15867641,107380.0,107370.0,0.35]
[1750958641021,1.15867641,107380.0,107370.0,0.5362079]
[1750958641323,1.15867641,107380.0,107370.0,0.35]
[1750958641822,1.15867641,107380.0,107370.0,0.5362079]
[1750958642425,1.15867641,107380.0,107370.0,0.35]
[1750958643422,1.15867641,107380.0,107370.0,0.5362079]
[1750958645220,0.8004964,107380.0,107370.0,0.5362079]
[1750958645521,1.49867641,107380.0,107370.0,0.35]
[1750958645722,1.49867641,107380.0,107360.0,0.2793214]
[1750958645723,0.1862082,107370.0,107360.0,0.2793214]
[1750958645924,1.33917371,107370.0,107360.0,0.7058776]
[1750958646718,0.9809937,107370.0,107360.0,0.7058776]
[1750958646919,1.33917371,107370.0,107360.0,0.7058776]
[1750958647119,0.9809937,107370.0,107360.0,0.7058776]
[1750958648225,0.9819937,107370.0,107360.0,0.7058776]
[1750958649116,0.9829937,107370.0,107360.0,0.7058776]
[1750958649412,0.9829937,107370.0,107360.0,0.6593214]
[1750958649724,0.9829937,107370.0,107360.0,0.6127659]
[1750958650224,1.34117371,107370.0,107360.0,0.6127659]
[1750958651822,0.9829937,107370.0,107360.0,0.6127659]
[1750958660426,1.34117371,107370.0,107360.0,0.6127659]
[1750958662731,1.70197371,107370.0,107360.0,0.5662107]
[1750958668340,1.70200861,107370.0,107360.0,0.5662107]
[1750958669340,1.3438286,107370.0,107360.0,0.5662107]
[1750958671141,0.9830286,107370.0,107360.0,0.5662107]
[1750958671334,1.3438286,107370.0,107360.0,0.5662107]
[1750958671639,1.70200861,107370.0,107360.0,0.5662253]
[1750958672438,1.70200861,107370.0,107360.0,0.38]
[1750958673439,1.70200861,107370.0,107360.0,0.5662259]
[1750958674541,1.3438286,107370.0,107360.0,0.5662259]
[1750958675246,0.9830286,107370.0,107360.0,0.5662259]
[1750958675638,0.9830286,107370.0,107360.0,0.5967259]
[1750958676138,0.9830286,107370.0,107360.0,0.6283259]
[1750958677633,0.4075486,107370.0,107360.0,0.5967259]
[1750958677840,0.9182686,107370.0,107360.0,1.31570591]
[1750958678040,0.9182686,107370.0,107360.0,1.37960591]
[1750958679846,0.9182686,107370.0,107360.0,1.0214259]
[1750958680041,0.9182686,107370.0,107360.0,1.37960591]
[1750958682049,0.9182686,107370.0,107360.0,1.0214259]
[1750958682250,0.9182686,107370.0,107360.0,0.9891259]
[1750958682449,0.9495686,107370.0,107360.0,0.9891259]
[1750958683045,0.9495686,107370.0,107360.0,0.6283259]
[1750958683246,0.9797686,107370.0,107360.0,0.6283259]
[1750958683550,0.9797686,107370.0,107360.0,0.5967258]
[1750958683750,1.33794861,107370.0,107360.0,0.5967258]
[1750958684752,0.9797686,107370.0,107360.0,0.5967258]
[1750958685051,0.9548282,107370.0,107360.0,0.5967258]
[1750958687654,0.8933282,107370.0,107360.0,0.9575258]
[1750958687852,0.8933282,107370.0,107360.0,1.34800581]
[1750958688249,0.3182082,107370.0,107360.0,1.34800581]
[1750958689855,0.132,107370.0,107360.0,1.34800581]
[1750958691350,0.15695103,107370.0,107360.0,1.34800581]
[1750958692652,0.15595103,107370.0,107360.0,1.34800581]
[1750958692957,0.132,107370.0,107360.0,1.84182582]
[1750958693656,0.132,107370.0,107360.0,1.48364581]
[1750958693958,0.13,107370.0,107360.0,1.48364581]
[1750958696659,0.13,107370.0,107360.0,1.84182582]
[1750958699260,0.1549477,107370.0,107360.0,1.84182582]
[1750958701152,0.1549477,107370.0,107360.0,1.85723153]
[1750958704467,0.13,107370.0,107360.0,1.85723153]
[1750958704764,0.13,107370.0,107360.0,1.85713002]
[1750958705870,0.0002,107380.0,107370.0,0.1862087]
[1750958706166,0.15503045,107380.0,107370.0,1.90712871]
[1750958706969,0.15603045,107380.0,107370.0,1.90712871]
[1750958707565,0.15703045,107380.0,107370.0,1.90712871]
[1750958708363,0.70140176,107380.0,107370.0,0.33]
[1750958708562,0.76360176,107380.0,107370.0,0.5162087]
[1750958710964,1.12440176,107380.0,107370.0,0.33]
[1750958711365,1.44440176,107380.0,107370.0,0.33]
[1750958711669,1.83440176,107380.0,107370.0,0.33]
[1750958714072,1.83440176,107380.0,107370.0,0.5162087]
[1750958715185,1.83440176,107380.0,107370.0,0.33]
[1750958719179,1.47622175,107380.0,107370.0,0.33]
[1750958719384,1.83440176,107380.0,107370.0,0.33]
[1750958720675,0.1862088,107370.0,107360.0,0.2793257]
[1750958720974,0.80491926,107370.0,107360.0,0.6393257]
[1750958721876,0.44673925,107370.0,107360.0,0.6393257]
[1750958722277,0.80491926,107370.0,107360.0,0.6393257]
[1750958723784,0.44673925,107370.0,107360.0,0.6393257]
[1750958723983,0.78691926,107370.0,107360.0,0.6393257]
[1750958724582,0.78691926,107370.0,107360.0,0.5927694]
[1750958724782,1.14771926,107370.0,107360.0,0.5927694]
[1750958727086,1.14771926,107370.0,107360.0,0.5462262]
[1750958727784,1.14771926,107370.0,107360.0,0.36]
[1750958727987,1.45771926,107370.0,107360.0,0.36]
[1750958728883,0.78953925,107370.0,107360.0,0.36]
[1750958729086,1.49771926,107370.0,107360.0,0.36]
[1750958729279,0.1862435,107350.0,107340.0,0.1862461]
[1750958729487,1.76985396,107350.0,107340.0,0.1862461]
[1750958729786,1.86555396,107350.0,107340.0,0.5362461]
[1750958730287,1.86555396,107350.0,107340.0,0.35]
[1750958730487,1.86555396,107350.0,107340.0,0.352]
[1750958730882,1.86555396,107350.0,107340.0,0.5382609]
[1750958731082,1.86555396,107350.0,107340.0,0.5402609]
[1750958731381,1.50737395,107350.0,107340.0,0.5402609]
[1750958731578,0.18793045,107350.0,107340.0,0.89844091]
[1750958731784,0.18793045,107350.0,107340.0,0.96024091]
[1750958732180,0.37417395,107350.0,107340.0,1.32104091]
[1750958732384,0.18793045,107350.0,107340.0,1.35434091]
[1750958732887,0.15503045,107350.0,107340.0,1.35434091]
[1750958737487,0.34127395,107350.0,107340.0,1.35434091]
[1750958740686,0.15503045,107350.0,107340.0,1.35434091]
[1750958741888,0.13,107350.0,107340.0,1.35434091]
[1750958742884,0.3162435,107350.0,107340.0,0.9961609]
[1750958743088,0.34118049,107350.0,107340.0,0.5716609]
[1750958743289,0.7318605,107350.0,107340.0,0.5716609]
[1750958743489,0.43678049,107350.0,107340.0,0.5716609]
[1750958743678,0.7949605,107350.0,107340.0,0.5716609]
[1750958746091,0.7949605,107350.0,107340.0,0.5402609]
[1750958746293,0.43678049,107350.0,107340.0,0.5402609]
[1750958749385,0.7949605,107350.0,107340.0,0.5402609]
[1750958754097,1.7299605,107350.0,107340.0,0.5402614]
[1750958758792,1.3691605,107350.0,107340.0,0.5402614]
[1750958759086,0.15493699,107350.0,107340.0,1.28944141]
[1750958759295,0.15493699,107350.0,107340.0,1.35314141]
[1750958760696,0.15493699,107350.0,107340.0,1.92726141]
[1750958762698,0.15493699,107350.0,107340.0,2.06230141]
[1750958765203,0.0002,107360.0,107350.0,0.1862442]
[1750958765402,0.13,107360.0,107350.0,1.44049891]
[1750958765602,0.1550052,107360.0,107350.0,1.44049891]
[1750958769801,0.13,107360.0,107350.0,1.44049891]
[1750958771805,0.15500267,107360.0,107350.0,1.44049891]
[1750958772303,0.13,107360.0,107350.0,1.44049891]
[1750958773402,0.1626,107360.0,107350.0,1.44049891]
[1750958774302,0.13,107360.0,107350.0,1.44049891]
[1750958783112,0.13,107360.0,107350.0,1.0823189]
[1750958783313,0.13,107360.0,107350.0,1.44049891]
[1750958783712,0.3162289,107360.0,107350.0,1.44049891]
[1750958783913,0.13,107360.0,107350.0,1.44049891]
[1750958787316,0.163,107360.0,107350.0,1.44049891]
[1750958788018,0.1939,107360.0,107350.0,1.44049891]
[1750958798910,0.1939,107360.0,107350.0,1.37489891]
[1750958799917,0.3801289,107360.0,107350.0,1.37489891]
[1750958800114,0.3801289,107360.0,107350.0,0.9701594]
[1750958800412,0.40519427,107360.0,107350.0,1.5437994]
[1750958800619,1.12417428,107360.0,107350.0,0.5162463]
[1750958802713,1.69781428,107360.0,107350.0,0.5162463]
[1750958810420,1.33963427,107360.0,107350.0,0.5162463]
[1750958819624,1.33963427,107360.0,107350.0,0.87442631]
[1750958820332,0.40519427,107360.0,107350.0,1.23522631]
[1750958820527,0.15506537,107360.0,107350.0,1.29652631]
[1750958820830,0.13,107360.0,107350.0,1.32832631]
[1750958821427,0.13,107360.0,107350.0,2.03652631]
[1750958823234,0.13,107360.0,107350.0,2.03852631]
[1750958823630,0.13,107360.0,107350.0,2.04052631]
[1750958826532,0.0002,107370.0,107360.0,0.1862289]
[1750958826740,0.2337266,107390.0,107370.0,0.40472911]
[1750958827036,0.36892414,107390.0,107380.0,0.98520031]
[1750958827237,0.36892414,107390.0,107380.0,1.34520031]
[1750958827434,0.13619754,107390.0,107380.0,1.34520031]
[1750958827632,0.32237434,107390.0,107380.0,1.34520031]
[1750958827834,0.32437434,107390.0,107380.0,1.34520031]
[1750958828234,0.13819754,107390.0,107380.0,1.34520031]
[1750958828634,0.32437434,107390.0,107380.0,1.34520031]
[1750958829638,0.32237434,107390.0,107380.0,1.34520031]
[1750958829835,0.32437434,107390.0,107380.0,1.34520031]
[1750958831436,0.32737434,107390.0,107380.0,1.34520031]
[1750958832236,0.32737434,107390.0,107380.0,1.34573365]
[1750958832534,0.32737434,107390.0,107380.0,0.98755364]
[1750958832935,0.32737434,107390.0,107380.0,1.34573365]
[1750958833136,0.3021768,107390.0,107380.0,1.34573365]
[1750958835331,0.3273712,107390.0,107380.0,1.34573365]
[1750958835732,0.3273712,107390.0,107380.0,1.33017421]
[1750958836439,0.3021768,107390.0,107380.0,1.33017421]
[1750958838839,0.3021768,107390.0,107380.0,0.9719942]
[1750958839042,0.3021768,107390.0,107380.0,1.33017421]
[1750958842242,0.32736457,107390.0,107380.0,1.33017421]
[1750958842645,0.35866457,107390.0,107380.0,1.33017421]
[1750958842848,0.38896457,107390.0,107380.0,1.33017421]
[1750958845053,0.20278777,107390.0,107380.0,1.33017421]
[1750958845246,0.14118777,107390.0,107380.0,1.69097421]
[1750958849453,0.03018777,107390.0,107380.0,1.69097421]
[1750958849652,0.0002,107400.0,107390.0,0.1861768]
[1750958849957,0.0314,107410.0,107400.0,0.1861595]
[1750958850159,0.1712,107410.0,107400.0,1.33853951]
[1750958851258,0.1772,107410.0,107400.0,1.33853951]
[1750958851458,0.1822,107410.0,107400.0,1.33853951]
[1750958851859,0.151,107410.0,107400.0,1.33853951]
[1750958860666,0.151,107410.0,107400.0,1.69671952]
[1750958861067,0.151,107410.0,107400.0,1.33853951]
[1750958861668,0.151,107410.0,107400.0,1.69933951]
[1750958866166,0.1762463,107410.0,107400.0,1.69933951]
[1750958866769,0.1762463,107410.0,107400.0,0.9169595]
[1750958866770,0.3623884,107410.0,107400.0,0.9169595]
[1750958867067,0.4254884,107410.0,107400.0,0.9169595]
[1750958867771,0.4254884,107410.0,107400.0,1.27513951]
[1750958868473,0.4254884,107410.0,107400.0,0.9169595]
[1750958868676,0.4254884,107410.0,107400.0,1.27513951]
[1750958873276,0.2393463,107410.0,107400.0,1.27513951]
[1750958873775,0.4254885,107410.0,107400.0,1.27513951]
[1750958875370,0.4002422,107410.0,107400.0,1.27513951]
[1750958879583,0.42555026,107410.0,107400.0,1.27513951]
[1750958879779,0.42555026,107410.0,107400.0,0.9169595]
[1750958880077,0.42555026,107410.0,107400.0,0.7669595]
[1750958880281,0.69372498,107410.0,107400.0,1.03513422]
[1750958880480,0.42555026,107410.0,107400.0,1.30330894]
[1750958880982,0.69372498,107410.0,107400.0,1.30330894]
[1750958881780,0.42555026,107410.0,107400.0,1.30330894]
[1750958885173,0.17630806,107410.0,107400.0,1.30330894]
[1750958885379,0.17630806,107410.0,107400.0,1.36680894]
[1750958888292,0.17630806,107410.0,107400.0,1.18793155]
[1750958890793,0.151,107410.0,107400.0,1.5454036]
[1750958890987,0.151,107410.0,107400.0,1.18793155]
[1750958895686,0.151,107410.0,107400.0,1.21973155]
[1750958895895,0.151,107410.0,107400.0,1.5772036]
[1750958896692,0.151,107410.0,107400.0,1.21973155]
[1750958899596,0.151,107410.0,107400.0,1.5772036]
[1750958900189,0.151,107410.0,107400.0,1.21973155]
[1750958904598,0.151,107410.0,107400.0,1.5772036]
[1750958905091,0.0012,107420.0,107410.0,0.1861421]
[1750958905297,0.05630578,107420.0,107410.0,2.05920523]
[1750958905497,0.031,107420.0,107410.0,2.05920523]
[1750958906304,0.001,107420.0,107410.0,2.05920523]
[1750958906495,0.011,107420.0,107410.0,2.05920523]
[1750958906798,0.0002,107430.0,107420.0,0.1861249]
[1750958907006,0.0308,107440.0,107430.0,0.20159322]
[1750958907191,0.17589918,107440.0,107430.0,1.88724527]
[1750958908095,0.17589918,107440.0,107430.0,1.88024527]
[1750958908494,0.17589918,107440.0,107430.0,1.88960788]
[1750958909298,0.17589918,107440.0,107430.0,2.02400788]
[1750958909995,0.17589918,107440.0,107430.0,2.02700788]
[1750958910301,0.1506,107440.0,107430.0,2.02700788]
[1750958910892,0.1506,107440.0,107430.0,2.02400788]
[1750958912405,0.1506,107440.0,107430.0,2.09792522]
[1750958914504,0.1506,107440.0,107430.0,2.09768522]
[1750958914798,0.3366902,107440.0,107430.0,2.09768522]
[1750958915004,0.214,107440.0,107430.0,2.06458522]
[1750958915196,0.4000902,107440.0,107430.0,2.06458522]
[1750958915397,0.214,107440.0,107430.0,2.06458522]
[1750958915702,0.4000902,107440.0,107430.0,2.03278522]
[1750958916407,0.214,107440.0,107430.0,2.03278522]
[1750958918706,0.214,107440.0,107430.0,2.03271677]
[1750958919600,0.214,107440.0,107430.0,2.09571677]
[1750958921710,0.214,107440.0,107430.0,2.45651677]
[1750958922310,0.214,107440.0,107430.0,2.4410995]
[1750958922507,0.1506,107440.0,107430.0,2.4410995]
[1750958923209,0.2156,107440.0,107430.0,2.4410995]
[1750958930700,0.4016897,107440.0,107430.0,2.3779395]
[1750958931108,0.2156,107440.0,107430.0,2.3779395]
[1750958931305,0.4016897,107440.0,107430.0,1.66209689]
[1750958931514,0.42692023,107440.0,107430.0,2.23425689]
[1750958931722,0.42692023,107440.0,107430.0,2.24359711]
[1750958932217,0.42692023,107440.0,107430.0,2.23425689]
[1750958932422,0.42692023,107440.0,107430.0,1.51265689]
[1750958932622,0.42692023,107440.0,107430.0,0.94049689]
[1750958933821,0.42692023,107440.0,107430.0,0.58302484]
[1750958935625,0.42692023,107440.0,107430.0,0.94049689]
[1750958936729,0.43641622,107440.0,107430.0,0.94049689]
[1750958937626,0.79721622,107440.0,107430.0,0.94049689]
[1750958938430,0.79721622,107440.0,107430.0,0.58302484]
[1750958939021,0.7972487,107440.0,107430.0,0.58302484]
[1750958942232,0.7972487,107440.0,107430.0,0.40691734]
[1750958942431,1.3693287,107440.0,107430.0,0.42302434]
[1750958942931,1.35983271,107440.0,107430.0,0.42302434]
[1750958943236,1.35983271,107440.0,107430.0,0.78049639]
[1750958947336,1.35979271,107440.0,107430.0,0.78049639]
[1750958947536,1.3345297,107440.0,107430.0,0.78049639]
[1750958947738,1.35998058,107440.0,107430.0,0.78049639]
[1750958950741,1.35998058,107440.0,107430.0,0.42302434]
[1750958955446,1.35998058,107440.0,107430.0,0.78049639]
[1750958956051,2.03745263,107440.0,107430.0,0.163]
[1750958957552,2.13745263,107440.0,107430.0,0.163]
[1750958957850,1.81745263,107440.0,107430.0,0.003]
[1750958958049,2.06945263,107440.0,107430.0,0.003]
[1750958958546,2.31945263,107440.0,107430.0,0.003]
[1750958958749,0.1861243,107420.0,107410.0,0.1861355]
[1750958959048,1.62180723,107420.0,107410.0,0.5361355]
[1750958959240,1.32603518,107420.0,107410.0,0.5361355]
[1750958959842,1.32603518,107420.0,107410.0,0.5371355]
[1750958960044,1.32603518,107420.0,107410.0,0.5421355]
[1750958960345,1.32603518,107420.0,107410.0,0.89960755]
[1750958960649,1.32603518,107420.0,107410.0,0.93270755]
[1750958960850,1.32603518,107420.0,107410.0,0.96300755]
[1750958961150,1.32603518,107420.0,107410.0,0.6045355]
[1750958961349,1.32603518,107420.0,107410.0,0.96200755]
[1750958961850,1.35853518,107420.0,107410.0,0.96200755]
[1750958962847,1.35853518,107420.0,107410.0,0.96300755]
[1750958963551,0.99773518,107420.0,107410.0,0.96300755]
[1750958964552,0.93603518,107420.0,107410.0,0.96300755]
[1750958971154,0.90353518,107420.0,107410.0,0.96300755]
[1750958971654,0.93643518,107420.0,107410.0,0.96300755]
[1750958973949,0.96673518,107420.0,107410.0,0.96300755]
[1750958974151,0.99843518,107420.0,107410.0,0.96300755]
[1750958976649,1.35923518,107420.0,107410.0,0.93270755]
[1750958976954,1.35923518,107420.0,107410.0,0.89960755]
[1750958978454,1.35923518,107420.0,107410.0,0.5421355]
[1750958979654,1.35923518,107420.0,107410.0,0.5411355]
[1750958980054,1.35923518,107420.0,107410.0,0.5361355]
[1750958980254,1.35923518,107420.0,107410.0,0.5381355]
[1750958980960,1.71670723,107420.0,107410.0,0.5381416]
[1750958981158,1.71670723,107420.0,107410.0,0.002]
[1750958983048,0.1861416,107410.0,107400.0,0.2792201]
[1750958983248,0.78949248,107410.0,107400.0,0.6092201]
[1750958984259,0.78949248,107410.0,107400.0,0.6122201]
[1750958984454,0.42869248,107410.0,107400.0,0.6122201]
[1750958984660,0.42869248,107410.0,107400.0,1.33049215]
[1750958984855,0.42869248,107410.0,107400.0,1.39259215]
[1750958985260,0.42869248,107410.0,107400.0,1.39359215]
[1750958988268,0.42869248,107410.0,107400.0,1.03279215]
[1750958992264,0.14545088,107410.0,107400.0,1.7510642]
[1750958992566,0.14545088,107410.0,107400.0,1.42489215]
[1750958994365,0.14545088,107410.0,107400.0,1.99661215]
[1750958997067,0.14545088,107410.0,107400.0,1.63581215]
[1750958997268,0.14545088,107410.0,107400.0,1.99661215]
[1750959000362,0.14545088,107410.0,107400.0,2.3540842]
[1750959000565,0.12,107410.0,107400.0,2.3540842]
[1750959004164,0.12,107410.0,107400.0,1.99661215]
[1750959008273,0.12,107410.0,107400.0,2.3540842]
[1750959010277,0.12,107410.0,107400.0,1.99661215]
[1750959011374,0.12,107410.0,107400.0,2.3540842]
[1750959011676,0.12,107410.0,107400.0,1.99661215]
[1750959012673,0.12,107410.0,107400.0,2.3540842]
[1750959014483,0.12,107410.0,107400.0,1.99661215]
[1750959016084,0.3061412,107410.0,107400.0,1.54201215]
[1750959016284,0.42770904,107410.0,107400.0,0.97069215]
[1750959016481,0.42770904,107410.0,107400.0,1.54201215]
[1750959017882,0.42770904,107410.0,107400.0,1.90281215]
[1750959018089,0.2163,107410.0,107400.0,1.90281215]
[1750959018282,0.4024413,107410.0,107400.0,1.90281215]
[1750959018884,0.2163,107410.0,107400.0,1.90281215]
[1750959019285,0.2163,107410.0,107400.0,1.96431215]
[1750959019792,0.4024412,107410.0,107400.0,1.96431215]
[1750959020789,0.4024412,107410.0,107400.0,1.93381215]
[1750959020995,0.4024412,107410.0,107400.0,1.90281215]
[1750959022192,0.2163,107410.0,107400.0,1.90281215]
[1750959024996,0.4024413,107410.0,107400.0,1.90281215]
[1750959025398,0.2163,107410.0,107400.0,1.90281215]
[1750959025794,0.4024413,107410.0,107400.0,1.90281215]
[1750959026393,0.2163,107410.0,107400.0,1.90281215]
[1750959028596,0.2163,107410.0,107400.0,1.96491215]
[1750959029094,0.4024413,107410.0,107400.0,1.96491215]
[1750959030201,0.4024413,107410.0,107400.0,1.93351215]
[1750959038300,0.4024413,107410.0,107400.0,2.1122629]
[1750959038906,0.2163,107410.0,107400.0,2.1122629]
[1750959039109,0.4024413,107410.0,107400.0,2.1430629]
[1750959039401,0.2163,107410.0,107400.0,2.1430629]
[1750959039611,0.1528,107410.0,107400.0,2.1430629]
[1750959040608,0.12,107410.0,107400.0,2.4111743]
[1750959040806,0.12,107410.0,107400.0,2.4432743]
[1750959041006,0.12,107410.0,107400.0,2.1751629]
[1750959042000,0.12,107410.0,107400.0,2.4432743]
[1750959042203,0.12,107410.0,107400.0,2.1751629]
[1750959042402,0.12,107410.0,107400.0,2.4432743]
[1750959043605,0.12,107410.0,107400.0,2.1751629]
[1750959044308,0.12,107410.0,107400.0,2.35379116]
[1750959055921,0.12,107410.0,107400.0,2.36926056]
[1750959057017,0.12,107410.0,107400.0,1.79794056]
[1750959057222,0.2326198,107440.0,107420.0,0.0465279]
[1750959057424,0.30620908,107440.0,107430.0,1.47509223]
[1750959057616,0.36620908,107440.0,107430.0,1.85509223]
[1750959058421,0.37020908,107440.0,107430.0,1.85509223]
[1750959058820,0.36920908,107440.0,107430.0,1.86650745]
[1750959059126,0.18011228,107440.0,107430.0,1.86650745]
[1750959060727,0.36620168,107440.0,107430.0,1.86650745]
[1750959061123,0.36620168,107440.0,107430.0,1.85709223]
[1750959062125,0.36620168,107440.0,107430.0,1.93292321]
[1750959062423,0.36620168,107440.0,107430.0,1.94209176]
[1750959062624,0.36620168,107440.0,107430.0,1.93292321]
[1750959069729,0.36620168,107440.0,107430.0,1.9422354]
[1750959070529,0.36620168,107440.0,107430.0,1.93292321]
[1750959071030,0.30620168,107440.0,107430.0,1.55292321]
[1750959071229,0.42620168,107440.0,107430.0,1.86292321]
[1750959071930,0.42620168,107440.0,107430.0,1.29216321]
[1750959072124,0.42620168,107440.0,107430.0,1.86268321]
[1750959073525,1.14442721,107440.0,107430.0,0.312]
[1750959073729,0.1861067,107430.0,107420.0,0.2326501]
[1750959073926,1.45421887,107430.0,107420.0,0.33]
[1750959074227,1.45421887,107430.0,107420.0,0.516124]
[1750959074428,1.50421887,107430.0,107420.0,0.526124]
[1750959074629,1.12421887,107430.0,107420.0,0.526124]
[1750959076032,1.12521887,107430.0,107420.0,0.526124]
[1750959078630,0.76779334,107430.0,107420.0,0.526124]
[1750959078829,1.12521887,107430.0,107420.0,0.526124]
[1750959081333,0.76779334,107430.0,107420.0,0.526124]
[1750959083134,1.12521887,107430.0,107420.0,0.526124]
[1750959086738,0.75494451,107430.0,107420.0,0.526124]
[1750959086929,0.39751898,107430.0,107420.0,0.88354953]
[1750959087335,0.39751898,107430.0,107420.0,0.558424]
[1750959088042,0.39751898,107430.0,107420.0,0.560424]
[1750959088240,0.39751898,107430.0,107420.0,0.954324]
[1750959088529,0.40694611,107430.0,107420.0,0.954324]